Workbook

Sheet Start
AD1: 0 | AE1: Start
H2: Modul 02 : Unternehmensgründung | AD2: =AD1+1 -> 1 | AE2: 01-Stundensatz_A
AD3: =AD2+1 -> 2 | AE3: 02_Handelskalkulation_A
M4: Zu dieser Datei: | AD4: 3 | AE4: 03_Entgeltrechnung_A
AD5: 4 | AE5: 04_Break_even_1A
M6: Diese Datei enthält eine Reihe von Kalkulations-Schemata, die für betriebs- | AD6: 5 | AE6: 05_Break_even_2A
M7: wirtschaftliche Bewertungen und Entscheidungen in der Phase der Leistungs- | AD7: 6 | AE7: 06_Make_or_buy_A
M8: erstellung nützlich sein können. Im Einzelnen betrifft dies
N9: - die Ermittlung von Stundensätzen bei Dienstleistungen,
N10: - die Ermittlung von Einstands- und Verkaufspreise bei Handelswaren,
N11: - die Entgeltabrechnung (Nettolohn, Steuern, Abgaben),
N12: - die Ermittlung auftrags- und umsatzbezogener Gewinnschwellen sowie
N13: - die Bewertung von Entscheidungen über "Eigenfertigung" oder "Fremdbezug").
M15: Diese Kalkulations-Schemata enthalten Daten zu Fallbeispielen als Übungsaufgabe.
M16: Die jeweilige Musterlösung kann nach Lösung der Aufgabe eingeblendet werden.
M17: Eine Nutzung der Schemata für eigene Daten ist möglich.
F20: Tabellen-Auswahl
F21: 0

Sheet 01_Stundensatz_A
C4: Stundensatz bei Dienstleistungen
C6: 1. Vorbemerkungen
C7: Unternehmensgründer im Bereich Dienstleistungen benötigen für die Erarbeitung von Angeboten für Kunden
C8: sowie für die Abrechnung erstellter Dienstleistungen einen Stundenverrechnungssatz [EUR/h], der das derzeitige
C9: Kostenniveau des Unternehmens realistisch widerspiegelt.
C10: Nachfolgend wird hierfür ein Schema (mit Beispiel-Zahlen) vorgestellt, das für eigene Kalkulationszwecke genutzt oder
C11: auch anderen Bedingungen angepasst werden kann.
C12: Aufgabe:
C13: Ermitteln Sie anhand der vorgegebenen Beispielzahlen die Personalkosten, die Sachkosten und den Stundenverrechnungssatz!
C15: 2. Ermittlung der Kosten des Unternehmens pro Jahr
C17: a) Personalkosten | G17: Anzahl | H17: Ø Entgelt pro Mitarb./ Monat | I17: Summe/Jahr
C18: 1.1 | D18: Personalaufwendungen aller angestellten Mitarbeiter | G18: 3 | H18: 2900 | J18: EUR/a
C19: 1.2 | D19: Kalkulatorischer Unternehmerlohn (Unternehmer) | G19: 1 | H19: 3150 | J19: EUR/a
C20: 1.3 | D20: Personalnebenkosten (Sozialabgaben) [%] zu Pos. 1.1 | F20: 22 | J20: EUR/a
C21: 1.4 | D21: Personalkosten gesamt (1.1 bis 1.3) | J21: EUR/a
C23: b) Sachkosten
C24: Position | G24: Ø Betrag / Monat | H24: Summe Jahr [EUR/a]
C25: 2.1 | D25: Miete und Nebenkosten (Gas, Wasser, Strom) | G25: 610
C26: 2.2 | D26: Büro- und Verwaltungskosten (Bürobedarf, Kommunikation, Porto, Reisekosten u. a.) | G26: 670
C27: 2.3 | D27: Versicherungen, Beiträge | G27: 580
C28: 2.4 | D28: Fremdleistungen (Müllabfuhr, Reinigung, Reparaturen u. a.) | G28: 360
C29: 2.5 | D29: Finanzierungskosten (Bankgebühren, Zinsen) | G29: 600
C30: 2.6 | D30: Kalkuatorische Abschreibungen | H30: 15000
C31: 2.7 | D31: Kfz-Kosten | G31: 440
C32: 2.8 | D32: Kosten für Marketing, Werbung | G32: 350
C33: 2.9 | D33: Betriebsbedarf (Werkzeuge, Ersatzmaterialien u. a.) | G33: 150
C34: 2.10 | D34: Betriebliche Steuern (Kfz-Steuer, Grundsteuer u. a.) | G34: 350
C35: 2.11 | D35: Sonstige Ausgaben (Zeitschriften, Bewirtungskosten u. a.) | G35: 500
C36: 2.12 | D36: Sachkosten (2.1 bis 2.11)
C38: c) Summe Personal- und Sachkosten
C39: Kosten nach Pos. 1.4 und 2.12
C41: 3. Ermittlung der fakturierungsfähigen Stunden pro Jahr
D43: 1. | E43: Anzahl der Tage im Jahr | F43: d/a | G43: 365
D44: 2. | E44: Anzahl der Samstage und Sonntage im Jahr | F44: d/a | G44: 104
D45: 3. | E45: Anzahl der Feiertage im Jahr | F45: d/a | G45: 10
D46: 4. | E46: Anzahl der Urlaubstage im Jahr | F46: d/a | G46: 24
D47: 5. | E47: Anzahl der Ausfalltage im Jahr (Krankheit u. a.) | F47: d/a | G47: 4
D48: 6. | E48: Netto-Arbeitstage im Jahr | F48: d/a | G48: =G43-SUM(G44:G47) -> 223
D49: 7. | E49: Arbeitsstunden pro Tag, im Jahr | F49: h/d bzw. h/a | G49: 8
D50: 8. | E50: Zeitverluste, Nichtauslastung [%], Std. | F50: h/a | G50: 20
D51: 9. | E51: Summe fakturierbarer Stunden pro Jahr und Person | F51: h/a | G51: =H49-H50 -> 0
D52: 10. | E52: Anzahl der Personen, deren Stunden verrechnet werden können | F52: Pers. | G52: =G18 -> 3
C54: 4. Stundenverrechnungssatz
E55: Jährliche Kosten pro Jahr | G55: EUR/a
E56: Fakturierbare Stunden po Jahr | G56: h/a
E57: Stundenverrechnungssatz | G57: EUR/h

Sheet 01_Stundensatz_L (hidden)
C4: Stundensatz bei Dienstleistungen
C6: 1. Vorbemerkungen
C7: Unternehmensgründer im Bereich Dienstleistungen benötigen für die Erarbeitung von Angeboten für Kunden
C8: sowie für die Abrechnung erstellter Dienstleistungen einen Stundenverrechnungssatz [EUR/h], der das derzeitige
C9: Kostenniveau des Unternehmens realistisch widerspiegelt.
C10: Nachfolgend wird hierfür ein Schema (mit Beispiel-Zahlen) vorgestellt, das für eigene Kalkulationszwecke genutzt oder
C11: auch anderen Bedingungen angepasst werden kann.
C13: 2. Ermittlung der Kosten des Unternehmens pro Jahr
C15: a) Personalkosten | G15: Anzahl | H15: Ø Entgelt pro Mitarb./ Monat | I15: Summe/Jahr
C16: 1.1 | D16: Personalaufwendungen aller angestellten Mitarbeiter | G16: 3 | H16: 2900 | I16: =G16*H16*12 -> 104400 | J16: EUR/a
C17: 1.2 | D17: Kalkulatorischer Unternehmerlohn (Unternehmer) | G17: 1 | H17: 3150 | I17: =G17*H17*12 -> 37800 | J17: EUR/a
C18: 1.3 | D18: Personalnebenkosten (Sozialabgaben) [%] zu Pos. 1.1 | F18: 22 | I18: =I16*F18/100 -> 22968 | J18: EUR/a
C19: 1.4 | D19: Personalkosten gesamt (1.1 bis 1.3) | I19: =SUM(I16:I18) -> 165168 | J19: EUR/a
C21: b) Sachkosten
C22: Position | G22: Ø Betrag / Monat | H22: Summe Jahr [EUR/a]
C23: 2.1 | D23: Miete und Nebenkosten (Gas, Wasser, Strom) | G23: 610 | H23: =G23*12 -> 7320
C24: 2.2 | D24: Büro- und Verwaltungskosten (Bürobedarf, Kommunikation, Porto, Reisekosten u. a.) | G24: 670 | H24: =G24*12 -> 8040
C25: 2.3 | D25: Versicherungen, Beiträge | G25: 580 | H25: 6960
C26: 2.4 | D26: Fremdleistungen (Müllabfuhr, Reinigung, Reparaturen u. a.) | G26: 360 | H26: 4320
C27: 2.5 | D27: Finanzierungskosten (Bankgebühren, Zinsen) | G27: 600 | H27: 7200
C28: 2.6 | D28: Kalkuatorische Abschreibungen | H28: 15000
C29: 2.7 | D29: Kfz-Kosten | G29: 440 | H29: 5280
C30: 2.8 | D30: Kosten für Marketing, Werbung | G30: 350 | H30: 4200
C31: 2.9 | D31: Betriebsbedarf (Werkzeuge, Ersatzmaterialien u. a.) | G31: 150 | H31: 1800
C32: 2.10 | D32: Betriebliche Steuern (Kfz-Steuer, Grundsteuer u. a.) | G32: 350 | H32: 4200
C33: 2.11 | D33: Sonstige Ausgaben (Zeitschriften, Bewirtungskosten u. a.) | G33: 500 | H33: 6000
C34: 2.12 | D34: Sachkosten (2.1 bis 2.11) | H34: =SUM(H23:H33) -> 70320
C36: c) Summe Personal- und Sachkosten
C37: Kosten nach Pos. 1.4 und 2.12 | H37: =I19+H34 -> 235488
C39: 3. Ermittlung der fakturierungsfähigen Stunden pro Jahr
D41: 1. | E41: Anzahl der Tage im Jahr | F41: d/a | G41: 365
D42: 2. | E42: Anzahl der Samstage und Sonntage im Jahr | F42: d/a | G42: 104
D43: 3. | E43: Anzahl der Feiertage im Jahr | F43: d/a | G43: 10
D44: 4. | E44: Anzahl der Urlaubstage im Jahr | F44: d/a | G44: 24
D45: 5. | E45: Anzahl der Ausfalltage im Jahr (Krankheit u. a.) | F45: d/a | G45: 4
D46: 6. | E46: Netto-Arbeitstage im Jahr | F46: d/a | G46: =G41-SUM(G42:G45) -> 223
D47: 7. | E47: Arbeitsstunden pro Tag, im Jahr | F47: h/d bzw. h/a | G47: 8 | H47: =G46*G47 -> 1784
D48: 8. | E48: Zeitverluste, Nichtauslastung [%], Std. | F48: h/a | G48: 20 | H48: =H47*G48/100 -> 356.8
D49: 9. | E49: Summe fakturierbarer Stunden pro Jahr und Person | F49: h/a | G49: =H47-H48 -> 1427.2
D50: 10. | E50: Anzahl der Personen, deren Stunden verrechnet werden können | F50: Pers. | G50: =G16 -> 3
C52: 4. Stundenverrechnungssatz
E53: Jährliche Kosten pro Jahr | F53: =H37 -> 235488 | G53: EUR/a
E54: Fakturierbare Stunden po Jahr | F54: =G49*G50 -> 4281.6 | G54: h/a
E55: Stundenverrechnungssatz | F55: =ROUND(F53/F54,2) -> 55 | G55: EUR/h

Sheet 02_Handelskalkulation_A
C4: Kalkulation von Handelswaren
C6: 1. Vorbemerkungen
C8: Bei Handelswaren geht es um Produkte, die ein Unternehmer von Lieferanten (Hersteller bzw. Großhändlern) einkauft, um
C9: diese Produkte - unbearbeitet oder nur unwesentlich bearbeitet - an eigene Kunden weiterzuverkaufen bzw. sie in Ver-
C10: bindung mit Wartungs-/Reparaturleistungen zu verwenden und sie dann den eigenen Kunden in Rechnung zu stellen.
C11: Bewertungsgrundlage beim Einkauf ist der Einstandspreis und beim Verkauf der Verkaufspreis (netto).
C13: Aufgabe:
C14: Ermitteln Sie anhand der vorgegebeben Beispiel-Zahlen den Einstandspreis, die Handlungskosten, den Handlungs-
C15: kostensatz und den möglichen Barverkaufspreis!
C17: 2. Kostenbestimmende Positionen beim Einkauf
C18: Folgende Positionen sind beim Einkauf von Handelswaren kosten- und preisbestimmend:
D19: Nr. | E19: Position | F19: Beispiel-Betrag
D20: 1. | E20: Listenpreis des Lieferanten [EUR/ME] | F20: 100
D21: 2. | E21: Lieferer-Rabatt [%] | F21: 5
D22: 3. | E22: Lieferer-Skonto [%] | F22: 2
D23: 4. | E23: Bezugskosten - netto [EUR/ME] | F23: 5
D24: 5. | E24: Einstandspreis [EUR/ME]
C26: 3. Beim Unternehmer anfallende Handlungskosten
C27: Folgende Aufwendungen können beim Unternehmer als Handlungskosten in Rechnung gesetzt werden:
H28: Beispiel-Zahlwerte
D29: 1. | E29: Zurechenbare Personalkosten (Einkaufsbereich, Lagerbereich) [EUR/a] | H29: 5000
D30: 2. | E30: Zurechenbare Lagerkosten (Räume, Einrichtungen), bewertet zu kalkulatorishen Abschreibungen [EUR/a] | H30: 2000
D31: 3. | E31: Kapitalbindungskosten (Warenbestand, bewertet mit kalkulatorischem Zinssatz) | H31: 1200
D32: 4. | E32: Zurechenbare Versicherungen u. a., bezogen auf Warenbestände, Lehgereinrichtungen [EUR/a] | H32: 500
D33: 5. | E33: Summe zurechenbarer Kosten [EUR/a]
D35: 6. | E35: Gesamter Wareneinsatz [EUR/a] | H35: 20000
D36: 7. | E36: Handlungskostensatz [%]
C38: 4. Kalkulation eines Barverkaufspreises bei Handelswaren
H39: Beispiel-Zahlwerte
D40: 1. | E40: Einstandspreis [EUR/ME]
D41: 2. | E41: Handlungskosten [%], [EUR/ME] | G41: =H36 -> 0
D42: 3. | E42: Selbstkosten [EUR/ME]
D43: 4. | E43: Gewinnzuschlag [%], [EUR/ME] | G43: 7
D44: 5. | E44: Barverkaufspreis [EUR/ME]

Sheet 02_Handelskalkulation_L (hidden)
C4: Kalkulation von Handelswaren
C6: 1. Vorbemerkungen
C8: Bei Handelswaren geht es um Produkte, die ein Unternehmer von Lieferanten (Hersteller bzw. Großhändlern) einkauft, um
C9: diese Produkte - unbearbeitet oder nur unwesentlich bearbeitet - an eigene Kunden weiterzuverkaufen bzw. sie in Ver-
C10: bindung mit Wartungs-/Reparaturleistungen zu verwenden und sie dann den eigenen Kunden in Rechnung zu stellen.
C11: Bewertungsgrundlage beim Einkauf ist der Einstandspreis und beim Verkauf der Verkaufspreis (netto).
C13: 2. Kostenbestimmende Positionen beim Einkauf
C14: Folgende Positionen sind beim Einkauf von Handelswaren kosten- und preisbestimmend:
D15: Nr. | E15: Position | F15: Beispiel-Betrag
D16: 1. | E16: Listenpreis des Lieferanten [EUR/ME] | F16: 100
D17: 2. | E17: Lieferer-Rabatt [%] | F17: 5
D18: 3. | E18: Lieferer-Skonto [%] | F18: 2
D19: 4. | E19: Bezugskosten - netto [EUR/ME] | F19: 5
D20: 5. | E20: Einstandspreis [EUR/ME] | F20: =F16*(1-F17/100)*(1-F18/100)+F19 -> 98.1
C22: 3. Beim Unternehmer anfallende Handlungskosten
C23: Folgende Aufwendungen können beim Unternehmer als Handlungskosten in Rechnung gesetzt werden:
H24: Beispiel-Zahlwerte
D25: 1. | E25: Zurechenbare Personalkosten (Einkaufsbereich, Lagerbereich) [EUR/a] | H25: 5000
D26: 2. | E26: Zurechenbare Lagerkosten (Räume, Einrichtungen), bewertet zu kalkulatorishen Abschreibungen [EUR/a] | H26: 2000
D27: 3. | E27: Kapitalbindungskosten (Warenbestand, bewertet mit kalkulatorischem Zinssatz) | H27: 1200
D28: 4. | E28: Zurechenbare Versicherungen u. a., bezogen auf Warenbestände, Lehgereinrichtungen [EUR/a] | H28: 500
D29: 5. | E29: Summe zurechenbarer Kosten [EUR/a] | H29: =SUM(H25:H28) -> 8700
D31: 6. | E31: Gesamter Wareneinsatz [EUR/a] | H31: 20000
D32: 7. | E32: Handlungskostensatz [%] | H32: =H29*100/H31 -> 43.5
C34: 4. Kalkulation eines Barverkaufspreises bei Handelswaren
H35: Beispiel-Zahlwerte
D36: 1. | E36: Einstandspreis [EUR/ME] | H36: =F20 -> 98.1
D37: 2. | E37: Handlungskosten [%], [EUR/ME] | G37: =H32 -> 43.5 | H37: =H36*G37/100 -> 42.6735
D38: 3. | E38: Selbstkosten [EUR/ME] | H38: =H36+H37 -> 140.7735
D39: 4. | E39: Gewinnzuschlag [%], [EUR/ME] | G39: 7 | H39: =H38*G39/100 -> 9.854145
D40: 5. | E40: Barverkaufspreis [EUR/ME] | H40: =H38+H39 -> 150.627645
C42: Falls es im gegebenen Fall Sinn macht, kann im Weiteren ein Kunden-Skonto und/oder einen Kunden-Rabatt sowie die
C43: gesetzliche Umsatzsteuer eingerechnet werden.

Sheet 03_Entgeltrechnung_A
C4: Entgeltabrechnung (Personalkosten)
C6: 1. Fallbeispiel
C8: Die Gehaltsabrechnung für den Mitarbeiter Walter R. ( kinderlos, 25 Jahre alt), beschäftigt beim Unternehmer
C9: =CONCATENATE("Max Muster, enthält für Monat März des Kalenderjahres " & YEAR(NOW()) & " die in nachstehender Tabelle aufgeführten Einzel-") -> Max Muster, enthält für Monat März des Kalenderjahres 2021 die in nachstehender Tabelle aufgeführten Einzel-
C10: angaben.- Die Zahlungen sind noch nicht erfolgt.
C11: Aufgabe: Es ist der Auszahlungsbetrag für den Mitarbeiter und die Aufwendungen für den Arbeitgeber zu ermitteln!
C13: 2. Berechnungstabelle
D15: Nr. | E15: Position | G15: %-Satz | H15: Arbeit-nehmer | I15: Arbeit-geber | J15: gesamt
D16: 01 | E16: Bruttogehalt | H16: 2780 | J16: =H16 -> 2780
D17: 02 | E17: Sachbezug (Unterkunft) | I17: 184
D18: 03 | E18: Vermögenswirksame Leistung | I18: 37
D19: 04 | E19: Lohnsteuer- und SV-pflichtiges Entgelt
D20: 05 | E20: Lohnsteuer lt. Tabelle | H20: 460
D21: 08 | E21: Rentenversicherung | G21: 18.6
D22: 09 | E22: Krankenversicherung AN | G22: 8.3
D23: 10 | E23: Krankenversicherung AG | G23: 7.3
D24: 11 | E24: Pflegeversicherung AN | G24: 1.525
D25: 12 | E25: Pflegeversicherung AG | G25: 1.275
D26: 13 | E26: Arbeitslosenversicherung | G26: 2.4
D27: 14 | E27: SV-Beiträge gesamt
D28: 15 | E28: Nettoverdienst (ohne Sachbezüge)
D29: 16 | E29: ./. Sachbezüge
D30: 17 | E30: ./. Vermögenswirksame Leistung
D31: 19 | E31: Auszahlungsbetrag -netto
D32: 20 | E32: Aufwendungen für den AG
D33: 21 | E33: davon Personalbasiskosten
D34: 22 | E34: davon Personalzusatzkosten
D35: 23 | E35: % Anteil SV
D36: 24 | E36: % -Anteil Auszahlung zu Brutto

Sheet 03_Entgeltrechnung_L (hidden)
C4: Entgeltabrechnung (Personalkosten)
C6: 1. Fallbeispiel
C8: Die Gehaltsabrechnung für den Mitarbeiter Walter R. ( kinderlos, 25 Jahre alt), beschäftigt beim Unternehmer
C9: =CONCATENATE("Max Muster, enthält für Monat März des Kalenderjahres " & YEAR(NOW()) & " die in nachstehender Tabelle aufgeführten Einzel-") -> Max Muster, enthält für Monat März des Kalenderjahres 2021 die in nachstehender Tabelle aufgeführten Einzel-
C10: angaben.- Die Zahlungen sind noch nicht erfolgt.
C11: Aufgabe: Es ist der Auszahlungsbetrag für den Mitarbeiter und die Aufwendungen für den Arbeitgeber zu ermitteln!
C13: 2. Berechnungstabelle
D15: Nr. | E15: Position | G15: %-Satz | H15: Arbeit-nehmer | I15: Arbeit-geber | J15: gesamt
D16: 01 | E16: Bruttogehalt | H16: 2780 | J16: =H16 -> 2780
D17: 02 | E17: Sachbezug (Unterkunft) | I17: 184 | J17: =I17 -> 184
D18: 03 | E18: Vermögenswirksame Leistung | I18: 39 | J18: =I18 -> 39
D19: 04 | E19: Lohnsteuer- und SV-pflichtiges Entgelt | J19: =J16+J17+J18 -> 3003
D20: 05 | E20: Lohnsteuer lt. Tabelle | H20: 460 | J20: =H20 -> 460
D21: 08 | E21: Rentenversicherung | F21: 186 | G21: =F21/10 -> 18.6 | H21: =(J19*G21/100)/2 -> 279.279 | I21: =H21 -> 279.279 | J21: =H21+I21 -> 558.558
D22: 09 | E22: Krankenversicherung AN | F22: 83 | G22: =F22/10 -> 8.3 | H22: =J19*G22/100 -> 249.249 | J22: =H22 -> 249.249
D23: 10 | E23: Krankenversicherung AG | F23: 73 | G23: 7.3 | I23: =J19*G23/100 -> 219.219 | J23: =H23+I23 -> 219.219
D24: 11 | E24: Pflegeversicherung AN | F24: 1525 | G24: =F24/1000 -> 1.525 | H24: =J19*G24/100 -> 45.79575 | J24: =H24 -> 45.79575
D25: 12 | E25: Pflegeversicherung AG | F25: 1275 | G25: =F25/1000 -> 1.275 | I25: =J19*G25/100 -> 38.28825 | J25: =I25 -> 38.28825
D26: 13 | E26: Arbeitslosenversicherung | F26: 24 | G26: 2.4 | H26: =(J19*G26/100)/2 -> 36.036 | I26: =H26 -> 36.036 | J26: =H26+I26 -> 72.072
D27: 14 | E27: SV-Beiträge gesamt | H27: =SUM(H21:H26) -> 610.35975 | I27: =SUM(I21:I26) -> 572.82225 | J27: =H27+I27 -> 1183.182
D28: 15 | E28: Nettoverdienst (ohne Sachbezüge) | H28: =J19-H20-H27 -> 1932.64025
D29: 16 | E29: ./. Sachbezüge | H29: =J17 -> 184
D30: 17 | E30: ./. Vermögenswirksame Leistung | H30: =I18 -> 39
D31: 19 | E31: Auszahlungsbetrag -netto | H31: =H28-H29-H30 -> 1709.64025
D32: 20 | E32: Aufwendungen für den AG | I32: =J19+I27 -> 3575.82225
D33: 21 | E33: davon Personalbasiskosten | J33: =J16 -> 2780
D34: 22 | E34: davon Personalzusatzkosten | J34: =J17+J18+I27 -> 795.82225
D35: 23 | E35: % Anteil SV | G35: =G21/2+G22+G24+G26/2 -> 20.325 | I35: =G21/2+G23+G25+G26/2 -> 19.075
D36: 24 | E36: % -Anteil Auszahlung zu Brutto | G36: =H31*100/H16 -> 61.49785072

Sheet 04_Break_even_1A
C4: Break-even-Berechnung (auftragsbezogen)
C6: 1. Problemstellung
C8: Der Unternehmer Max Muster möchte wissen, bei welcher Anzahl von Service-Aufträgen/Monat er in seinem Unternehmen
C9: die Gewinnschwelle erreichen würde. Dabei soll zugleich sichtbar werden, ob die diesbezügliche Service-Kapazität ausreicht,
C10: um über die ermittelte Gewinnschwelle (Break-even-Punkt) hinaus weitere Service-Aufträge kapazitätsseitig abgesichert
C11: werden können.
C12: Für eine solche Break-even-Berechnung liegen die nachstehend aufgeführten Durchschnittswerte zum Pozess der Leistungs-
C13: vor.
C14: Aufgabe:
C15: Anhand der gegebenen Beispiel-Zahlen ist die auftragsbezogene Gewinnschwelle sowie der Sicherheitsabstand zur Kapazitäts-
C16: grenze zu ermitteln!
C17: Daten:
C18: Anzahl der Arbeitstage im Monat (Symbol ATM [d/Monat]) | J18: 21
C19: Durchschnittliche Anzahl der an einem Arbeitstag erledigten Aufträge (Symbol xd [ME/d]) | J19: 6
C20: Leistungs- bzw. Kapazitätsgrenze (Symbol Lmax [realisierbare Aufträge/Monat])
C21: abzudeckende Fixkosten (Symbol Kf [EUR/Monat]) | J21: 12000
C22: Durchschnittlicher Netto-Preis je Auftrag (Symbol PN [EUR/Auftrag]) | J22: 250
C23: Durchschnittliche variable Kosten je Auftrag (Symbol kv [EUR/Auftrag]) | J23: 160
C25: Berechnungsformeln:
C26: Die Gewinnschwelle (Menge x0) wird erreicht, wenn die Erlöse aus realisierten Aufträgen (Größe E0) genau die an diesem Punkt
C27: anfallenden Kosten (Größe K0), bestehend aus den Fixkosten Kf und den entsprechenden variablen Kosten Kv, entsprechen:
F28: E0 = PN * x0 = K0, mit | J28: (1)
G29: mit K0 = Kf + Kv,0 = Kf + kv * x0 | J29: (2)
C30: Wird die Gewinnschwellen-Gleichung | G30: PN * x0 = Kf + kv * x0 | I30: nach x0 umgstellt, erhält man die typische
C31: Break-even-Formel (3):
G32: (3)
C34: Der Sicherheitsabstand (Symbol Sx [ME]) der Break-even Menge x0 zur Kapazitätsgrenze Lmax wird wie folgt berechnet:
F35: Sx = Lmax - x0 [ME]. | H35: (4)
C37: Recherische Lösung:
F38: Hier Klartext eintragen | I38: Zahlwerte
K39: Ergebnis
C40: Gewinnschwelle x0 = | H40: = | J40: = | L40: [ME]
C43: Sicherheitsabstand Sx = | G43: Aufträge.

Sheet 04_Break_even_1L (hidden)
C4: Break-even-Berechnung (auftragsbezogen)
C6: 1. Problemstellung
C8: Der Unternehmer Max Muster möchte wissen, bei welcher Anzahl von Service-Aufträgen/Monat er in seinem Unternehmen
C9: die Gewinnschwelle erreichen würde. Dabei soll zugleich sichtbar werden, ob die diesbezügliche Service-Kapazität ausreicht,
C10: um über die ermittelte Gewinnschwelle (Break-even-Punkt) hinaus weitere Service-Aufträge kapazitätsseitig abgesichert
C11: werden können.
C12: Für eine solche Break-even-Berechnung liegen die nachstehend aufgeführten Durchschnittswerte zum Pozess der Leistungs-
C13: vor.
C14: Aufgabe:
C15: Anhand der gegebenen Beispiel-Zahlen ist die auftragsbezogene Gewinnschwelle sowie der Sicherheitsabstand zur Kapazitäts-
C16: grenze zu ermitteln!
C17: Daten:
C18: Anzahl der Arbeitstage im Monat (Symbol ATM [d/Monat]) | J18: 21
C19: Durchschnittliche Anzahl der an einem Arbeitstag erledigten Aufträge (Symbol xd [ME/d]) | J19: 6
C20: Leistungs- bzw. Kapazitätsgrenze (Symbol Lmax [realisierbare Aufträge/Monat]) | J20: =ATM*xd -> 126
C21: abzudeckende Fixkosten (Symbol Kf [EUR/Monat]) | J21: 12000
C22: Durchschnittlicher Netto-Preis je Auftrag (Symbol PN [EUR/Auftrag]) | J22: 250
C23: Durchschnittliche variable Kosten je Auftrag (Symbol kv [EUR/Auftrag]) | J23: 60
C25: Berechnungsformeln:
C26: Die Gewinnschwelle (Menge x0) wird erreicht, wenn die Erlöse aus realisierten Aufträgen (Größe E0) genau die an diesem Punkt
C27: anfallenden Kosten (Größe K0), bestehend aus den Fixkosten Kf und den entsprechenden variablen Kosten Kv, entsprechen:
F28: E0 = PN * x0 = K0, mit | J28: (1)
G29: mit K0 = Kf + Kv,0 = Kf + kv * x0 | J29: (2)
C30: Wird die Gewinnschwellen-Gleichung | G30: PN * x0 = Kf + kv * x0 | I30: nach x0 umgstellt, erhält man die typische
C31: Break-even-Formel (3):
G32: (3)
C34: Der Sicherheitsabstand (Symbol Sx [ME]) der Break-even Menge x0 zur Kapazitätsgrenze Lmax wird wie folgt berechnet:
F35: Sx = Lmax - x0 [ME]. | H35: (4)
C37: Recherische Lösung:
F39: Fixkosten [EUR] | I39: =Kf -> 12000
C40: Gewinnschwelle x0 = | H40: = | J40: = | K40: =ROUND(I39/I41,0) -> 63 | L40: [ME]
F41: Preis ./. variable Kosten | I41: =PN-dvk -> 190
C43: Sicherheitsabstand Sx = | F43: =ATM*xd -x0L -> 63 | G43: Aufträge.
C46: Nachfolgend wird gezeigt, wie der Break-even-Punkt grafisch veranschaulicht werden kann.

Sheet 04_Break_even_1G (hidden)
C4: Break-even-Berechnung (auftragsbezogen)
C6: Grafische Lösung
C8: Aufträge x [ME] | D8: Netto-Erlöse E [EUR] | E8: Variable Kosten Kv [EUR] | F8: Fixkosten Kf [EUR] | G8: Gesamt-kosten K [EUR] | H8: Erfolg (Verlust, Gewinn) G [EUR] | I8: Kapazität Lmax [ME] | K8: Parameter:
C9: 0 | D9: =PN*C9 -> 0 | E9: =dvk*C9 -> 0 | F9: =Kf -> 12000 | G9: =E9+F9 -> 12000 | H9: =D9-G9 -> -12000 | I9: =L -> 126 | K9: Preis PN = | L9: =PN -> 250 | M9: var. Kosten = | O9: =dvk -> 60 | Q9: Fixkosten = | R9: =Kf -> 12000
C10: =C9+10 -> 10 | D10: 2500 | E10: 600 | F10: 12000 | G10: =E10+F10 -> 12600 | H10: =D10-G10 -> -10100 | I10: 126
C11: =C10+10 -> 20 | D11: 5000 | E11: 1200 | F11: 12000 | G11: 13200 | H11: -8200 | I11: 126 | K11: Diagramm:
C12: 30 | D12: 7500 | E12: 1800 | F12: 12000 | G12: 13800 | H12: -6300 | I12: 126
C13: 40 | D13: 10000 | E13: 2400 | F13: 12000 | G13: 14400 | H13: -4400 | I13: 126
C14: 50 | D14: 12500 | E14: 3000 | F14: 12000 | G14: 15000 | H14: -2500 | I14: 126
C15: 60 | D15: 15000 | E15: 3600 | F15: 12000 | G15: 15600 | H15: -600 | I15: 126
C16: 70 | D16: 17500 | E16: 4200 | F16: 12000 | G16: 16200 | H16: 1300 | I16: 126
C17: 80 | D17: 20000 | E17: 4800 | F17: 12000 | G17: 16800 | H17: 3200 | I17: 126
C18: 90 | D18: 22500 | E18: 5400 | F18: 12000 | G18: 17400 | H18: 5100 | I18: 126
C19: 100 | D19: 25000 | E19: 6000 | F19: 12000 | G19: 18000 | H19: 7000 | I19: 126
C20: 110 | D20: 27500 | E20: 6600 | F20: 12000 | G20: 18600 | H20: 8900 | I20: 126
C21: 120 | D21: 30000 | E21: 7200 | F21: 12000 | G21: 19200 | H21: 10800 | I21: 126
C22: 130 | D22: 32500 | E22: 7800 | F22: 12000 | G22: 19800 | H22: 12700 | I22: 126
C23: =C22+10 -> 140 | D23: 35000 | E23: 8400 | F23: 12000 | G23: 20400 | H23: 14600 | I23: 126
C24: 150 | D24: 37500 | E24: 9000 | F24: 12000 | G24: 21000 | H24: 16500 | I24: 126
C25: 160 | D25: 40000 | E25: 9600 | F25: 12000 | G25: 21600 | H25: 18400 | I25: 126
C26: 170 | D26: 42500 | E26: 10200 | F26: 12000 | G26: 22200 | H26: 20300 | I26: 126
C27: 180 | D27: 45000 | E27: 10800 | F27: 12000 | G27: 22800 | H27: 22200 | I27: 126
C28: 190 | D28: 47500 | E28: 11400 | F28: 12000 | G28: 23400 | H28: 24100 | I28: 126
C29: 200 | D29: 50000 | E29: 12000 | F29: 12000 | G29: 24000 | H29: 26000 | I29: 126

Sheet 05_Break_even_2A
C4: Break-even-Berechnung (umsatzbezogen)
C6: 1. Problemstellung
C8: Der Unternehmer Max Muster möchte wissen, welche monatliche Umsatzgöße er in seinem Unternehmen
C9: mindestens erreichen muss, damit die damit erzielten Erlöse wenigstens kostendeckend sind.
C10: Für eine solche Break-even-Berechnung liegen die nachstehend aufgeführten Durchschnittswerte zum Prozess
C11: der Leistungserstellung vor.
C12: Aufgabe:
C13: Anhand der gegebenen Beispiel-Zahlen ist die umsatzbezogene Gewinnschwelle sowie der Sicherheitsabstand
C14: zur Kapazitätsgrenze zu ermitteln!
C15: Daten:
C16: abzudeckende Fixkosten (Symbol Kf [EUR/Monat]) | J16: 12000
C17: durchschnittlicher Anteil der variablen Kosten Umsatz [%] | J17: 60
C19: Berechnungsformeln:
C20: Die Gewinnschwelle (Umsatz U0) wird erreicht, wenn die Erlöse aus dieser Größe (Symbol E0) genau die
C21: an diesem Punkt anfallenden Kosten (Größe K0), bestehend aus den Fixkosten Kf und den entsprechenden
C22: variablen Kosten Kv, entsprechen:
F23: E0 = U0 = K0, mit
G24: mit K0 = Kf + Kv,0 = Kf + U0 * a/100
C25: Wird die Gewinnschwellen-Gleichung | G25: U0 = Kf + U0 * a/100 | I25: bzw. | J25: U0 * 100 = Kf * 100 + U0 * a
C26: nach U0 umgestellt, dann erhält man folgende Break-even-Formel:
I28: (5)
C30: Recherische Lösung:
C32: Gewinnschwelle U0 = | G32: = | I32: [EUR]

Sheet 05_Break_even_2L (hidden)
C4: Break-even-Berechnung (umsatzbezogen)
C6: 1. Problemstellung
C8: Der Unternehmer Max Muster möchte wissen, welche monatliche Umsatzgöße er in seinem Unternehmen
C9: mindestens erreichen muss, damit die damit erzielten Erlöse wenigstens kostendeckend sind.
C10: Für eine solche Break-even-Berechnung liegen die nachstehend aufgeführten Durchschnittswerte zum Prozess
C11: der Leistungserstellung vor.
C12: Aufgabe:
C13: Anhand der gegebenen Beispiel-Zahlen ist die umsatzbezogene Gewinnschwelle sowie der Sicherheitsabstand
C14: zur Kapazitätsgrenze zu ermitteln!
C15: Daten:
C16: abzudeckende Fixkosten (Symbol Kf [EUR/Monat]) | J16: 12000
C17: durchschnittlicher Anteil der variablen Kosten Umsatz [%] | J17: 60
C19: Berechnungsformeln:
C20: Die Gewinnschwelle (Umsatz U0) wird erreicht, wenn die Erlöse aus dieser Größe (Symbol E0) genau die
C21: an diesem Punkt anfallenden Kosten (Größe K0), bestehend aus den Fixkosten Kf und den entsprechenden
C22: variablen Kosten Kv, entsprechen:
F23: E0 = U0 = K0, mit
G24: mit K0 = Kf + Kv,0 = Kf + U0 * a/100
C25: Wird die Gewinnschwellen-Gleichung | G25: U0 = Kf + U0 * a/100 | I25: bzw. | J25: U0 * 100 = Kf * 100 + U0 * a
C26: nach U0 umgestellt, dann erhält man folgende Break-even-Formel:
I28: (5)
C30: Recherische Lösung:
F31: =Kfix*100 -> 1200000
C32: Gewinnschwelle U0 = | G32: = | H32: =F31/F33 -> 30000 | I32: [EUR]
F33: =100-a -> 40
C35: Nachfolgend wird gezeigt, wie der Break-even-Punkt grafisch veranschaulicht werden kann.

Sheet 05_Break_even_2G (hidden)
C4: Break-even-Berechnung (umsatzbezogen)
C6: Grafische Lösung
C8: Umsatz U [EUR] | D8: Netto-Erlöse E [EUR] | E8: Variable Kosten Kv [EUR] | F8: Fixkosten Kf [EUR] | G8: Gesamt-kosten K [EUR] | H8: Erfolg (Verlust, Gewinn) G [EUR] | J8: Parameter:
C9: 0 | D9: =C9 -> 0 | E9: =C9*a/100 -> 0 | F9: ='05_Break_even_2L'!Kfix -> 12000 | G9: =E9+F9 -> 12000 | H9: =D9-G9 -> -12000 | K9: Anteil var. Kosten = | N9: =a -> 60 | P9: Fixkosten = | Q9: ='05_Break_even_2L'!Kfix -> 12000
C10: =C9+1500 -> 1500 | D10: =C10 -> 1500 | E10: 900 | F10: ='05_Break_even_2L'!Kfix -> 12000 | G10: 12900 | H10: =D10-G10 -> -11400
C11: =C10+1500 -> 3000 | D11: 3000 | E11: 1800 | F11: ='05_Break_even_2L'!Kfix -> 12000 | G11: 13800 | H11: -10800 | J11: Diagramm:
C12: 4500 | D12: 4500 | E12: 2700 | F12: ='05_Break_even_2L'!Kfix -> 12000 | G12: 14700 | H12: -10200
C13: 6000 | D13: 6000 | E13: 3600 | F13: ='05_Break_even_2L'!Kfix -> 12000 | G13: 15600 | H13: -9600
C14: 7500 | D14: 7500 | E14: 4500 | F14: ='05_Break_even_2L'!Kfix -> 12000 | G14: 16500 | H14: -9000
C15: 9000 | D15: 9000 | E15: 5400 | F15: ='05_Break_even_2L'!Kfix -> 12000 | G15: 17400 | H15: -8400
C16: 10500 | D16: 10500 | E16: 6300 | F16: ='05_Break_even_2L'!Kfix -> 12000 | G16: 18300 | H16: -7800
C17: 12000 | D17: 12000 | E17: 7200 | F17: ='05_Break_even_2L'!Kfix -> 12000 | G17: 19200 | H17: -7200
C18: 13500 | D18: 13500 | E18: 8100 | F18: ='05_Break_even_2L'!Kfix -> 12000 | G18: 20100 | H18: -6600
C19: 15000 | D19: 15000 | E19: 9000 | F19: ='05_Break_even_2L'!Kfix -> 12000 | G19: 21000 | H19: -6000
C20: 16500 | D20: 16500 | E20: 9900 | F20: ='05_Break_even_2L'!Kfix -> 12000 | G20: 21900 | H20: -5400
C21: 18000 | D21: 18000 | E21: 10800 | F21: ='05_Break_even_2L'!Kfix -> 12000 | G21: 22800 | H21: -4800
C22: 19500 | D22: 19500 | E22: 11700 | F22: ='05_Break_even_2L'!Kfix -> 12000 | G22: 23700 | H22: -4200
C23: 21000 | D23: 21000 | E23: 12600 | F23: ='05_Break_even_2L'!Kfix -> 12000 | G23: 24600 | H23: -3600
C24: 22500 | D24: 22500 | E24: 13500 | F24: ='05_Break_even_2L'!Kfix -> 12000 | G24: 25500 | H24: -3000
C25: 24000 | D25: 24000 | E25: 14400 | F25: ='05_Break_even_2L'!Kfix -> 12000 | G25: 26400 | H25: -2400
C26: 25500 | D26: 25500 | E26: 15300 | F26: ='05_Break_even_2L'!Kfix -> 12000 | G26: 27300 | H26: -1800
C27: 27000 | D27: 27000 | E27: 16200 | F27: ='05_Break_even_2L'!Kfix -> 12000 | G27: 28200 | H27: -1200
C28: 28500 | D28: 28500 | E28: 17100 | F28: ='05_Break_even_2L'!Kfix -> 12000 | G28: 29100 | H28: -600
C29: 30000 | D29: 30000 | E29: 18000 | F29: ='05_Break_even_2L'!Kfix -> 12000 | G29: 30000 | H29: 0
C30: 31500 | D30: =C30 -> 31500 | E30: =C30*a/100 -> 18900 | F30: ='05_Break_even_2L'!Kfix -> 12000 | G30: =E30+F30 -> 30900 | H30: =D30-G30 -> 600

Sheet 06_Make_or_buy_A
C4: Entscheidungsproblem " Make-or-buy"
C6: 1. Problemstellung
C8: Der Unternehmer Max Muster hat sich vor Beginn der Ingangsetzung des Geschäftsbetriebs seines zu gründenden
C9: Unternehmens umfassend darüber informiert, welche Zubehör-Teile ein Unternehmen "E-Car-Services" für Kunden
C10: bereit halten sollte.
C11: Ein nützliches Angebot könnte die Bereitstellung von Wandhalterungen für Ladekupplungen sein.
C12: Für den Gründer stelle sich dabei die Frage, ob es aus wirtschaftlicher Sicht besser ist, derartige Wandhalterungen
C13: von Lieferanten zu kaufen oder ob es sich lohnen könnte, die Halterungen selbst zu erstellen und seinen Kunden als
C14: "selbst gemacht" anzubieten.
C15: Bei einer Eigenfertigung müsste der Gründer sich allerdings eine Spezialmaschine anschaffen, die eine weitgehend
C16: automatisierte Fertigung von Wandhalterungen ermöglicht,
C17: Mit anderen Worten: Es geht um das "klassische" Problem "Eigenfertigung oder Fremdbezug" (also "Make or "buy").
C19: 2. Aufgaben:
C21: 1. | D21: Es ist zu überprüfen, ob bei den nachstehend aufgeführten Daten eine Eigenfertigung wirklich kostengünstiger
D22: ist oder ob der Fremdbezug von Wandhalterungen sinvoller wäre!
C23: 2. | D23: Unter diesem Aspekt ist ferner jene kritische Menge x0 zu ermitteln, bei der die Kosten für die Eigenfertigung
D24: genau den Kosten für den Fremdbezug entsprechen!
C26: 3. Daten und Berechnungen
D28: a) Fremdbezug | H28: b) Eigenfertigung
D29: Nr. | E29: Position | F29: Angaben | H29: Nr. | I29: Position | J29: Angaben
D30: 1 | E30: Bedarf [ME/a] | F30: 1500 | H30: 1 | I30: Bedarf [ME/a] | J30: =F30 -> 1500
D31: 2 | E31: Preis P [EUR/ME] | F31: 17.1 | H31: =H30+1 -> 2 | I31: variable Kosten kv [EUR/ME] | J31: 10.8
D32: 3 | E32: Summe Kosten Fremdbezug [EUR] | F32: 1 | H32: =H31+1 -> 3 | I32: variable Kosten gesamt [EUR/a]
H33: 4 | I33: Anschaffungskosten [EUR] | J33: 21600
C34: c) Kostenvergleich | H34: 5 | I34: Nutzungsdauer [a] | J34: 4
C35: Bei den hier gegebenen Daten ist | H35: 6 | I35: kalkulat Abschreibungen [EUR/a]
H36: 7 | I36: Kalkulat. Zinssatz [%] | J36: 8.5
H37: 8 | I37: kalkulat. Zinsen [EUR]
H38: 9 | I38: sonstige Fixkosten [EUR/a] | J38: 2440
H39: 10 | I39: Summe Fixkosten Kf [EUR/a]
H40: 11 | I40: Summe Kosten Eigenfertigung | J40: 2
C41: 4. Kritische Menge x0
C42: Aus dem Ansatz "Kosten Fremdbezug" = "Kosten Eigenfertigung" mit P * x0 = Kf + kv * x0 lässt sich
C43: folgende Formel für die Ermittlung der kritische Menge x0 ableiten:
F45: Bezogen auf die obigen Daten ergibt sich für x0 folgender Wert:
F46: x0 = | I46: [ME]
C48: Dies be-deutet:

Sheet 06_Make_or_buy_L (hidden)
C4: Entscheidungsproblem " Make-or-buy"
C6: 1. Problemstellung
C8: Der Unternehmer Max Muster hat sich vor Beginn der Ingangsetzung des Geschäftsbetriebs seines zu gründenden
C9: Unternehmens umfassend darüber informiert, welche Zubehör-Teile ein Unternehmen "E-Car-Services" für Kunden
C10: bereit halten sollte.
C11: Ein nützliches Angebot könnte die Bereitstellung von Wandhalterungen für Ladekupplungen sein.
C12: Für den Gründer stelle sich dabei die Frage, ob es aus wirtschaftlicher Sicht besser ist, derartige Wandhalterungen
C13: von Lieferanten zu kaufen oder ob es sich lohnen könnte, die Halterungen selbst zu erstellen und seinen Kunden als
C14: "selbst gemacht" anzubieten.
C15: Bei einer Eigenfertigung müsste der Gründer sich allerdings eine Spezialmaschine anschaffen, die eine weitgehend
C16: automatisierte Fertigung von Wandhalterungen ermöglicht,
C17: Mit anderen Worten: Es geht um das "klassische" Problem "Eigenfertigung oder Fremdbezug" (also "Make or "buy").
C19: 2. Aufgaben:
C21: 1. | D21: Es ist zu überprüfen, ob bei den nachstehend aufgeführten Daten eine Eigenfertigung wirklich kostengünstiger
D22: ist oder ob der Fremdbezug von Wandhalterungen sinnvoller wäre!
C23: 2. | D23: Unter diesem Aspekt ist ferner jene kritische Menge x0 zu ermitteln, bei der die Kosten für die Eigenfertigung
D24: genau den Kosten für den Fremdbezug entsprechen!
C26: 3. Daten und Berechnungen
D28: a) Fremdbezug | H28: b) Eigenfertigung
D29: Nr. | E29: Position | F29: Angaben | H29: Nr. | I29: Position | J29: Angaben
D30: 1 | E30: Bedarf [ME/a] | F30: 1500 | H30: 1 | I30: Bedarf [ME/a] | J30: =F30 -> 1500
D31: 2 | E31: Preis P [EUR/ME] | F31: =G31/10 -> 17.1 | G31: 171 | H31: =H30+1 -> 2 | I31: variable Kosten kv [EUR/ME] | J31: =K31/10 -> 10.8 | K31: 108
D32: 3 | E32: Summe Kosten Fremdbezug [EUR] | F32: =F30*F31 -> 25650 | H32: =H31+1 -> 3 | I32: variable Kosten gesamt [EUR/a] | J32: =J30*J31 -> 16200
H33: 4 | I33: Anschaffungskosten [EUR] | J33: 21600
C34: c) Kostenvergleich | H34: 5 | I34: Nutzungsdauer [a] | J34: 4
C35: Bei den hier gegebenen Daten ist | H35: 6 | I35: kalkulat Abschreibungen [EUR/a] | J35: =J33/J34 -> 5400
D36: =IF(KEF<KFB, "die Eigenfertigung kostengünstiger!","der Fremdbezug günstiger!") -> die Eigenfertigung kostengünstiger! | H36: 7 | I36: Kalkulat. Zinssatz [%] | J36: =K36/10 -> 8.5 | K36: 85
H37: 8 | I37: kalkulat. Zinsen [EUR] | J37: =(J33/2)*J36/100 -> 918
H38: 9 | I38: sonstige Fixkosten [EUR/a] | J38: 2440
H39: 10 | I39: Summe Fixkosten Kf [EUR/a] | J39: =J35+J37+J38 -> 8758
H40: 11 | I40: Summe Kosten Eigenfertigung | J40: =J32+J39 -> 24958
C41: 4. Kritische Menge x0
C42: Aus dem Ansatz "Kosten Fremdbezug" = "Kosten Eigenfertigung" mit P * x0 = Kf + kv * x0 lässt sich
C43: folgende Formel für die Ermittlung der kritische Menge x0 ableiten:
F45: Bezogen auf die obigen Daten ergibt sich für x0 folgender Wert:
F46: x0 = | G46: =ROUND(J39/(F31-J31),0) -> 1390 | I46: [ME]
C48: =CONCATENATE("Dies bedeutet, dass bei einem Jahresbedarf von mehr als " & G46 & " ME die Eigenfertigung kostengünstiger ist als der Fremdbezug!") -> Dies bedeutet, dass bei einem Jahresbedarf von mehr als 1390 ME die Eigenfertigung kostengünstiger ist als der Fremdbezug!
C49: Unterhalb dieser Grenze ist der Fremdbezug kostengünstiger!

Sheet Blanko1 (hidden)
